Cogmind - Beta 9.2 @@@ ROGUE MODE // 2019.11.30 @ 21:01:08 Player: Nalzok Result: Destroyed by D-53 Grenadier with Mini Grenade Launcher Performance ------------- Evolutions (0) 0 Regions Visited (2) 400 Robots Destroyed (8) 40 Value Destroyed (148) 148 Prototype IDs (0) 0 Alien Tech Used (0) 0 Bonus (0) 0 TOTAL SCORE: 588 Bonus ------- None Cogmind --------- Core Integrity 0/250 Matter 257/300 Energy 125/125 System Corruption 0% Temperature Cool (0) Movement Walking (180) Ox2 Location -10/Mines Parts ------- > --- POWER (1) -------- Light Ion Engine > --- PROPULSION (2) --- Aluminum Leg > --- UTILITY (2) ------ Large Storage Unit Structural Scanner > --- WEAPON (2) ------- Light Cannon > --- INVENTORY (10) --- Light Ion Engine Heat Sink Small Storage Unit Large Storage Unit Sensor Array Light Assault Rifle Light Cannon Peak State ------------ > --- POWER ------------ Light Ion Engine > --- PROPULSION ------- Aluminum Leg Aluminum Leg > --- UTILITY ---------- Large Storage Unit Structural Scanner > --- WEAPON ----------- Assault Rifle Assault Rifle > --- INVENTORY -------- Ion Engine Light Ion Engine Aluminum Leg Heat Sink Small Storage Unit Large Storage Unit Sensor Array Light Assault Rifle Light Cannon Light Cannon [Rating: 8] Favorites ----------- Power Ion Engine Engine Ion Engine Propulsion Aluminum Leg Leg Aluminum Leg Utility Large Storage Unit Device Structural Scanner Storage Large Storage Unit Weapon Assault Rifle Ballistic Gun Assault Rifle Ballistic Cannon Light Cannon Build | -11 -10 -10 ------- Run | Scr Mat Min Slots Evolved . | . . . Power . | . . . Propulsion . | . . . Utility . | . . . Weapon . | . . . Parts Attached 8 | . 4 4 Power 2 | . 1 1 Engine 2 | . 1 1 Core . | . . . Reactor . | . . . Propulsion 2 | . 1 1 Treads . | . . . Leg 2 | . 1 1 Wheel . | . . . Hover . | . . . Flight . | . . . Utility 2 | . 2 . Device 1 | . 1 . Storage 1 | . 1 . Processor . | . . . Hackware . | . . . Protection . | . . . Artifact . | . . . Weapon 2 | . . 2 Energy Gun . | . . . Energy Cannon . | . . . Ballistic Gun 1 | . . 1 Ballistic Cannon 1 | . . 1 Launcher . | . . . Special Weapon . | . . . Impact Weapon . | . . . Slashing Weapon . | . . . Piercing Weapon . | . . . Special Melee Weapon . | . . . Unidentified Prototypes . | . . . Parts Lost 5 | . . 5 Power 1 | . . 1 Propulsion 2 | . . 2 Utility . | . . . Weapon 2 | . . 2 Highest Loss Streak 5 | . . 5 Average Slot Usage (%) 97 | . 98 95 Engine 14 | . 14 14 Leg 27 | . 28 26 Device 12 | . 10 14 Storage 14 | . 15 14 Ballistic Gun 26 | . 28 24 Naked Turns . | . . . Heaviest Build 27 | 11 27 26 Greatest Support 20 | 20 20 20 Greatest Overweight (x) 2 | . 1 2 Average Overweight (x) . | . . 1 Largest Inventory Capacity 12 | 6 12 10 Average Capacity 9 | 6 9 10 Most Carried 10 | 5 10 10 Average Carried 8 | 4 6 9 Final Capacity 10 | 6 10 10 Final Carried 10 | 2 10 7 Class Distribution -------------------- 100% | Mutant Dominant Class ---------------- Mutant | -10/Materials Mutant | -10/Mines Resources | -11 -10 -10 ----------- Run | Scr Mat Min Matter Collected 427 | 200 184 43 Remotely . | . . . Salvage Created 247 | . 213 34 Parts 22 | . 15 7 Haulers Intercepted . | . . . Recyclers Shooed 1 | . 1 . Parts Field Recycled . | . . . Retrieved Matter . | . . . Parts Self-Destructed . | . . . Prevented . | . . . Kills | -11 -10 -10 ------- Run | Scr Mat Min Combat Hostiles Destroyed 5 | . 3 2 Guns 5 | . 3 2 Classes Destroyed 4 | . 3 1 Builder 2 | . 1 1 Recycler 1 | . 1 . Swarmer 2 | . . 2 Grunt 3 | . 3 . Best Kill Streak 2 | . 2 2 Combat Bots Only 2 | . 1 2 Max Kills in Single Turn 2 | . 2 2 Gunslinging 1 | . . 1 Exploded . | . . . Melee . | . . . Uniques/NPCs Destroyed . | . . . Combat | -11 -10 -10 -------- Run | Scr Mat Min Damage Taken 931 | . 277 654 Core 275 | . 53 222 Absorbed by Shields . | . . . Core Remaining (%) 100 | 100 . . Volleys Fired 37 | . 24 13 Largest 2 | . 2 2 Hottest 40 | . 40 40 Shots Fired 68 | . 48 20 Gun 63 | . 48 15 Cannon 5 | . . 5 Launcher . | . . . Special . | . . . Kinetic 68 | . 48 20 Thermal . | . . . Explosive . | . . . Electromagnetic . | . . . Robot Hit Streak 12 | . 12 6 Robot Miss Streak 7 | . 4 7 Penetration Max . | . . . Secondary Targets 1 | . . 1 Max Gunslinging Chain 1 | . . 1 Shots Hit Robots 42 | . 29 13 Core Hits 14 | . 9 5 Critical Hits . | . . . Critical Kills . | . . . Critical Parts Destroyed . | . . . Melee Attacks . | . . . Impact . | . . . Slashing . | . . . Piercing . | . . . Sneak Attacks . | . . . Combat Hostiles . | . . . Follow-up Attacks . | . . . Damage Inflicted 467 | . 319 148 Guns 433 | . 319 114 Cannons 34 | . . 34 Explosions . | . . . Melee . | . . . Ramming . | . . . Kinetic 467 | . 319 148 Thermal . | . . . Explosive . | . . . Electromagnetic . | . . . Impact . | . . . Slashing . | . . . Piercing . | . . . Highest Corruption . | . . . Average Corruption . | . . . Corruption Purged . | . . . Overload Shots . | . . . Overflow Damage 6 | . . 6 Projectiles 6 | . . 6 Explosions . | . . . Melee . | . . . Knockbacks 1 | . . 1 Impact . | . . . Kinetic 1 | . . 1 Secondary . | . . . Self-Inflicted Damage . | . . . Shots . | . . . Rammed . | . . . Targets Rammed . | . . . Kicked . | . . . Crushed . | . . . Highest Temperature . | . . . Average Temperature . | . . . Received Heat Transfer 150 | . 150 . Siege Activations . | . . . Robots Corrupted . | . . . Combat Hostiles . | . . . Parts Fried . | . . . Impact Corruptions . | . . . Robots Melted . | . . . Combat Hostiles . | . . . Parts Melted . | . . . Heat Transferred . | . . . Parts Sabotaged . | . . . Parts Stolen . | . . . Parts Stripped . | . . . Power Chain Reactions . | . . . Missiles Intercepted . | . . . Alert | -11 -10 -10 ------- Run | Scr Mat Min Peak Influence 185 | . 185 137 Average Influence 102 | . 73 130 Maximum Alert Level . | . . . Low Security (%) 100 | 100 100 100 Level 1 . | . . . Level 2 . | . . . Level 3 . | . . . Level 4 . | . . . Level 5 . | . . . High Security . | . . . Max Security . | . . . Squads Dispatched 2 | . 2 . Investigation . | . . . Extermination . | . . . Reinforcement 2 | . 2 . Assault . | . . . Garrison . | . . . Intercept . | . . . Construction Impeded . | . . . Haulers Reinforced . | . . . Stealth | -11 -10 -10 --------- Run | Scr Mat Min Distress Signals 1 | . 1 . Communications Jammed . | . . . Distress Signals . | . . . Times Spotted 19 | . 10 9 Peak Tracking Total 7 | . 5 7 Tactical Retreats 1 | . . 1 Traps | -11 -10 -10 ------- Run | Scr Mat Min Traps Triggered . | . . . Indirectly . | . . . Trap Hack Attempts . | . . . Triggered . | . . . Disarmed . | . . . Reprogrammed . | . . . Reused . | . . . Traps Extracted . | . . . Installed . | . . . Triggered . | . . . Machines | -11 -10 -10 ---------- Run | Scr Mat Min Machines Disabled 1 | . 1 . Max in Single Turn 1 | . 1 . Machines Sabotaged . | . . . Garrisons Compromised . | . . . Overloaded Fab Kills . | . . . Fab Network Shutdowns . | . . . Hacking | -11 -10 -10 --------- Run | Scr Mat Min Machines Accessed 1 | . 1 . Terminals 1 | . 1 . Fabricators . | . . . Repair Stations . | . . . Recycling Units . | . . . Scanalyzers . | . . . Garrison Access . | . . . Total Hacks 1 | . 1 . Successful 1 | . 1 . Failed . | . . . Catastrophic . | . . . Database Lockouts . | . . . Manual . | . . . Terminals 1 | . 1 . Fabricators . | . . . Repair Stations . | . . . Recycling Units . | . . . Scanalyzers . | . . . Garrison Access . | . . . Terminal Hacks 1 | . 1 . Alert Level 1 | . 1 . Fabricator Hacks . | . . . Repair Station Hacks . | . . . Recycling Unit Hacks . | . . . Scanalyzer . | . . . Garrison Access Hacks . | . . . Unauthorized Hacks . | . . . Terminals . | . . . Fabricators . | . . . Repair Stations . | . . . Recycling Units . | . . . Scanalyzers . | . . . Garrison Access . | . . . Data Cores Recovered . | . . . Used . | . . . Hacking Detections . | . . . Full Trace Events . | . . . Feedback Events . | . . . Feedback Blocked . | . . . Robot Schematics Acquired . | . . . Robots Built . | . . . Matter . | . . . Time . | . . . Total Robot Build Rating . | . . . Part Schematics Acquired . | . . . Parts Built . | . . . Matter . | . . . Time . | . . . Total Part Build Rating . | . . . Parts Repaired . | . . . Time . | . . . Parts Recycled . | . . . Recycled Matter . | . . . Retrieved Matter . | . . . Retrieved Components . | . . . Parts Scanalyzed . | . . . Part Schematics Acquired . | . . . Parts Damaged . | . . . Bothacking | -11 -10 -10 ------------ Run | Scr Mat Min Used RIF Installer . | . . . Robots Hacked . | . . . Non-combat . | . . . Combat . | . . . Robot Hacks Applied . | . . . Relay Couplers Released . | . . . Robots Rewired . | . . . Allies Hacked . | . . . Hacks Repelled . | . . . Allies | -11 -10 -10 -------- Run | Scr Mat Min Total Allies . | . . . Largest Group . | . . . Highest-Rated Group . | . . . Highest-Rated Ally . | . . . Total Orders . | . . . Ally Attacks . | . . . Total Damage . | . . . Kills . | . . . Allies Corrupted . | . . . Allies Melted . | . . . Intel | -11 -10 -10 ------- Run | Scr Mat Min Robot Analysis Total . | . . . Derelict Logs Recovered 1 | . . 1 Drone Launches . | . . . Drone Recoveries . | . . . Exploration | -11 -10 -10 ------------- Run | Scr Mat Min Turns Passed 730 | 2 350 378 Spaces Moved 409 | 1 184 224 Core . | . . . Treads . | . . . Legs 409 | 1 184 224 Wheels . | . . . Hover . | . . . Flight . | . . . Fastest Speed 120 | 120 120 150 Average Speed 148 | 120 144 152 Slowest Speed 180 | 120 150 180 Overloaded Moves . | . . . Propulsion Burnouts . | . . . Robots Hopped . | . . . Cave-ins Triggered . | . . . Exploration Rate (%) 27 | 2 38 43 Regions Visited 2 Branch Regions 1 Pre-discovered Areas 1 | . . 1 Known Exits Taken . | . . . Unknown Exits Taken 2 | 1 1 . Scrap Searched . | . . . Spaces Dug . | . . . Terrain Destroyed . | . . . Melee . | . . . Projectile . | . . . AOE . | . . . Actions | -11 -10 -10 --------- Run | Scr Mat Min Total 468 | 4 221 243 Wait 1 | . . 1 Move 407 | . 183 224 Hop . | . . . Pick Up 7 | . 7 . Fast Attach 2 | . 2 . Attach 3 | . . 3 Detach 1 | . 1 . Swap 3 | . 2 1 Drop 7 | 4 2 1 Fire 37 | . 24 13 Melee . | . . . Ram . | . . . Kick . | . . . Crush . | . . . Escape Stasis . | . . . Rewire . | . . . Trap . | . . . Miscellaneous . | . . . Route ------- -11/Scrapyard -10/Materials -10/Mines (discovered 2 exits: [*Mat x2]) History --------- Turn | Location | Event 3 | -11/Scrapyard | Discovered new exit (range 0) 3 | -11/Scrapyard | Entered Materials 321 | -10/Materials | Build established: Mutant 338 | -10/Materials | Discovered new exit (range 8) 353 | -10/Materials | Entered Mines 452 | -10/Mines | Discovered new exit (range 4) 482 | -10/Mines | Discovered new exit (range 8) 621 | -10/Mines | Learned location of Mines (-9) 631 | -10/Mines | Assembled infested the area 636 | -10/Mines | Assisted by a Guerilla fighting off Assembled 685 | -10/Mines | Core integrity fell below 50% 687 | -10/Mines | Core integrity fell below 20% 719 | -10/Mines | Lost 5 parts (1p2n2w) 731 | -10/Mines | Destroyed by D-53 Grenadier with Mini Grenade Launcher Last Messages --------------- 00695_ The unstable cave ceiling collapses. 00696_ Destroyed Shock Absorption System. 00696_ D-53 Grenadier knocked back. 00697_ K-01 Serf collects debris. 00697_ U-05 Engineer lays Concrete. 00698_ U-05 Engineer builds a Wall. 00699_ The unstable cave ceiling collapses. 00701_ K-01 Serf collects debris. 00702_ The unstable cave ceiling collapses. 00703_ U-05 Engineer builds a Wall. 00705_ The unstable cave ceiling collapses. 00708_ K-01 Serf collects debris. 00709_ The unstable cave ceiling collapses. 00712_ K-01 Serf collects debris. 00713_ U-05 Engineer builds a Wall. 00713_ U-05 Engineer destroyed. 00715_ K-01 Serf collects debris. 00715_ Acquired 7 matter. 00716_ The unstable cave ceiling collapses. 00730_ K-01 Serf collects debris. Map ----- +----------------------------------------------------+ | ?????????????????????????????????????? | | ?????????????????????????????????????? | | ?????????????????????????????????????? | | ?????????????????????????????????????? | | ?????????????????????????????????????? | | ??????????????????????????######?????? | | ?????????????????????????## ##????? | | ????????????????????????## #????? | | ???????????????????????## #????? | | ??????????????????????## ## ##???? | | ?????????????????????## #### ##??? | | ?????????????????????# #### #??? | | ????????????????????## ## #??? | | ????????????????????# ## ##??? | | ????????????????????# ### ##???? | | ????????????????????# #?####????? | | ?####???????????????# ##?????????? | | ?# ???????????????## ##?????????? | | ## ?????????######### k ##????????? | | ## #?????##### #### ####?????? | | ## #????## # ### ###???? | | ## #????# # ###### ##??? | | ## !#????# # #*| =! #??? | | #### # !###### ### ##??? | | =# d ### ##?## #???? | | %!# # # # @ ##### #???? | | [ # # ## # k# ## ## #???? | | % # # ## ### #####???? | | # # ## # ## ## #?# #???????? | | # # # # #### ?## #?# #???????? | | # # ###??##### ###?# ### ##??????? | | " # # ##???????# #???# ##?????? | | " #????????# #???## ## ##????? | | " ### ????????# #????#??# ##???? | | ### ????????# #????# ## < #???? | | ### ???????# ###??# #???? | | ### ?????## #??##### #???? | | #?# ????# ##?????### #???? | | #?## ##### ##??????# #???? | | #??# ##?????# ##??? | | ???# ### ##????# ##?? | | ???# ### #?## ###??# #?? | | ???## ???## ##### #### #?? | | ????###????## ###### ## ##? | | ??????????## ##??## #? | | ??????????# #???## #? | | ??????????# ###### #? | | ??????????## ### ##? | | ???????????########### ##### #?? | | ?????????????????????# ### ##?? | +----------------------------------------------------+ Best States ------------- Heat Dissipation 25 Energy Generation 10 Energy Capacity 250 Matter Stores 300 Matter Capacity 300 Sight Range 16 Terrain Scan Density 10 Evasion (%) 40 Item Schematics ----------------- None Robot Schematics ------------------ None Fabricated ------------ Nothing Alien Tech Used ----------------- None Achievements -------------- None Challenges ------------ None Game ------ Seed NeutralizingCoilDatajack Manual? 0 Play Time 00:05:41 Cumulative 189.7 hours Start 2019.11.30 @ 20:57:22 End 2019.11.30 @ 21:01:08 Sessions 1 Manual Loads 0 Difficulty Rogue Special Mode None Game No. 309 Rogue 309 Adventurer 0 Explorer 0 Win Type - Total 0 Types 0/0/0/0/0/0/0 Lore% 58 Gallery% 74 Achievement% 44 Wizard Run 0 Options --------- ASCII 1 Keyboard 1 Movement Vi Keybinds 0 Fullscreen 1 Font 14/Cog Map View 72x52 Tactical HUD 1 Map Filters NONE Filters LOW_CONTRAST(13,24,33) Steam 0 RUN: 07623761-3afb-46d1-b6f0-bf7bd7f66d1d